[Event "Titled Tuesday Blitz April 11 Early 2023"]
[White "Tarasova, Viktoriya"]
[Black "Ahn, Hongjin"]
[WhiteFideId "4175840"]
[BlackFideId "13201492"]
[WhiteElo "2182"]
[BlackElo "2182"]
[Result "0-1"]
[Round "06"]
[TimeControl "180+2"]
[Date "2023.04.11"]
[WhiteClock "0:00:04"]
[BlackClock "0:00:06"]

1. d4 {[%clk 0:02:59]}  c5 {[%clk 0:02:58]} 2. d5 {[%clk 0:02:58]}  e5 {[%clk 0:02:58]} 3. Nc3 {[%clk 0:02:57]}  d6 {[%clk 0:02:58]} 4. e4 {[%clk 0:02:56]}  a6 {[%clk 0:02:59]} 5. a4 {[%clk 0:02:56]}  Be7 {[%clk 0:02:59]} 6. Nf3 {[%clk 0:02:55]}  Bg4 {[%clk 0:02:59]} 7. Be2 {[%clk 0:02:56]}  Bxf3 {[%clk 0:02:59]} 8. Bxf3 {[%clk 0:02:57]}  Bg5 {[%clk 0:03:00]} 9. O-O {[%clk 0:02:57]}  Nh6 {[%clk 0:02:56]} 10. Qe2 {[%clk 0:02:45]}  O-O {[%clk 0:02:55]} 11. Ra3 {[%clk 0:02:21]}  Nd7 {[%clk 0:02:53]} 12. Rb3 {[%clk 0:02:21]}  b6 {[%clk 0:02:52]} 13. Bg4 {[%clk 0:02:18]}  Bxc1 {[%clk 0:01:59]} 14. Bxd7 {[%clk 0:02:06]}  Qxd7 {[%clk 0:01:51]} 15. Rxc1 {[%clk 0:02:01]}  Qc7 {[%clk 0:01:47]} 16. f3 {[%clk 0:01:51]}  f5 {[%clk 0:01:38]} 17. exf5 {[%clk 0:01:45]}  Nxf5 {[%clk 0:01:38]} 18. Ne4 {[%clk 0:01:45]}  Nd4 {[%clk 0:01:38]} 19. Qe3 {[%clk 0:01:43]}  Nxb3 {[%clk 0:01:36]} 20. cxb3 {[%clk 0:01:27]}  Qd7 {[%clk 0:01:30]} 21. Ng5 {[%clk 0:01:22]}  Rae8 {[%clk 0:01:19]} 22. Qd3 {[%clk 0:01:18]}  Qf5 {[%clk 0:01:09]} 23. Ne4 {[%clk 0:01:18]}  Qg6 {[%clk 0:00:59]} 24. Rf1 {[%clk 0:01:04]}  Ra8 {[%clk 0:00:48]} 25. Qe2 {[%clk 0:00:48]}  Rfb8 {[%clk 0:00:41]} 26. Ra1 {[%clk 0:00:48]}  Qh6 {[%clk 0:00:29]} 27. h3 {[%clk 0:00:45]}  Rd8 {[%clk 0:00:14]} 28. Qd3 {[%clk 0:00:39]}  Qf4 {[%clk 0:00:10]} 29. g3 {[%clk 0:00:33]}  Qf5 {[%clk 0:00:07]} 30. Kg2 {[%clk 0:00:34]}  Qg6 {[%clk 0:00:07]} 31. h4 {[%clk 0:00:31]}  h6 {[%clk 0:00:05]} 32. Rh1 {[%clk 0:00:29]}  b5 {[%clk 0:00:04]} 33. axb5 {[%clk 0:00:27]}  axb5 {[%clk 0:00:05]} 34. Qxb5 {[%clk 0:00:27]}  Rab8 {[%clk 0:00:04]} 35. Qd3 {[%clk 0:00:22]}  Rb4 {[%clk 0:00:04]} 36. Rc1 {[%clk 0:00:12]}  Rdb8 {[%clk 0:00:03]} 37. Rc3 {[%clk 0:00:11]}  Rd4 {[%clk 0:00:02]} 38. Qe2 {[%clk 0:00:12]}  Qf5 {[%clk 0:00:03]} 39. Re3 {[%clk 0:00:08]}  Rd8 {[%clk 0:00:02]} 40. Nc3 {[%clk 0:00:08]}  Qf7 {[%clk 0:00:02]} 41. Re4 {[%clk 0:00:08]}  Rb8 {[%clk 0:00:02]} 42. Qc2 {[%clk 0:00:07]}  Qc7 {[%clk 0:00:03]} 43. h5 {[%clk 0:00:07]}  Rbb4 {[%clk 0:00:03]} 44. Re2 {[%clk 0:00:06]}  Rb8 {[%clk 0:00:03]} 45. Re1 {[%clk 0:00:07]}  Rdb4 {[%clk 0:00:03]} 46. Ne4 {[%clk 0:00:05]}  Rxb3 {[%clk 0:00:04]} 47. Re2 {[%clk 0:00:06]}  Qd7 {[%clk 0:00:04]} 48. Qb1 {[%clk 0:00:04]}  Qe7 {[%clk 0:00:04]} 49. Qc2 {[%clk 0:00:04]}  Qf7 {[%clk 0:00:04]} 50. Qb1 {[%clk 0:00:04]}  Qxd5 {[%clk 0:00:05]} 51. Nf6+ {[%clk 0:00:04]}  gxf6 {[%clk 0:00:04]} 52. Qg6+ {[%clk 0:00:04]}  Kf8 {[%clk 0:00:05]} 53. Qxh6+ {[%clk 0:00:04]}  Ke7 {[%clk 0:00:05]} 54. Qg7+ {[%clk 0:00:04]}  Qf7 {[%clk 0:00:06]} 55. Qh6 {[%clk 0:00:04]}  Rxb2 {[%clk 0:00:06]} 0-1


[Site "https://www.chess.com"]

[Event "Titled Tuesday Blitz April 11 Early 2023"]
[White "Lehtosaari, Mauri"]
[Black "Mika, Tomasz"]
[WhiteFideId "501999"]
[BlackFideId "1132970"]
[WhiteElo "2522"]
[BlackElo "2179"]
[Result "0-1"]
[Round "06"]
[TimeControl "180+2"]
[Date "2023.04.11"]
[WhiteClock "0:00:01"]
[BlackClock "0:00:03"]

1. d4 {[%clk 0:03:00]}  b6 {[%clk 0:02:55]} 2. e4 {[%clk 0:02:58]}  Bb7 {[%clk 0:02:56]} 3. Bd3 {[%clk 0:02:58]}  g6 {[%clk 0:02:56]} 4. c3 {[%clk 0:02:58]}  Bg7 {[%clk 0:02:57]} 5. Nf3 {[%clk 0:02:57]}  d6 {[%clk 0:02:57]} 6. Bg5 {[%clk 0:02:56]}  Nd7 {[%clk 0:02:56]} 7. Nbd2 {[%clk 0:02:56]}  c5 {[%clk 0:02:56]} 8. h3 {[%clk 0:02:54]}  h6 {[%clk 0:02:56]} 9. Bh4 {[%clk 0:02:49]}  Ngf6 {[%clk 0:02:55]} 10. Qe2 {[%clk 0:02:48]}  Nh5 {[%clk 0:02:52]} 11. Qe3 {[%clk 0:02:40]}  g5 {[%clk 0:02:48]} 12. Bg3 {[%clk 0:02:40]}  Nxg3 {[%clk 0:02:46]} 13. fxg3 {[%clk 0:02:41]}  e6 {[%clk 0:02:21]} 14. O-O {[%clk 0:02:25]}  Qe7 {[%clk 0:02:10]} 15. a4 {[%clk 0:02:18]}  a6 {[%clk 0:02:09]} 16. Nc4 {[%clk 0:02:14]}  cxd4 {[%clk 0:01:39]} 17. cxd4 {[%clk 0:02:05]}  d5 {[%clk 0:01:24]} 18. exd5 {[%clk 0:02:02]}  Bxd5 {[%clk 0:01:23]} 19. Nfe5 {[%clk 0:01:53]}  Nxe5 {[%clk 0:01:21]} 20. Nxe5 {[%clk 0:01:52]}  O-O {[%clk 0:01:20]} 21. Be4 {[%clk 0:01:32]}  Rad8 {[%clk 0:01:12]} 22. Rad1 {[%clk 0:01:18]}  Bxe4 {[%clk 0:00:53]} 23. Qxe4 {[%clk 0:01:18]}  Rd5 {[%clk 0:00:52]} 24. Kh2 {[%clk 0:01:06]}  Qb4 {[%clk 0:00:48]} 25. Nc6 {[%clk 0:01:03]}  Qd6 {[%clk 0:00:41]} 26. Rc1 {[%clk 0:00:42]}  f5 {[%clk 0:00:29]} 27. Qe2 {[%clk 0:00:32]}  Kh7 {[%clk 0:00:28]} 28. Qxa6 {[%clk 0:00:28]}  f4 {[%clk 0:00:26]} 29. Qd3+ {[%clk 0:00:18]}  Kh8 {[%clk 0:00:26]} 30. Kh1 {[%clk 0:00:17]}  Rc8 {[%clk 0:00:11]} 31. Ne5 {[%clk 0:00:13]}  Rxc1 {[%clk 0:00:09]} 32. Nf7+ {[%clk 0:00:13]}  Kg8 {[%clk 0:00:08]} 33. Nxd6 {[%clk 0:00:14]}  Rxf1+ {[%clk 0:00:06]} 34. Qxf1 {[%clk 0:00:15]}  Rxd6 {[%clk 0:00:06]} 35. gxf4 {[%clk 0:00:15]}  Rxd4 {[%clk 0:00:04]} 36. fxg5 {[%clk 0:00:15]}  hxg5 {[%clk 0:00:05]} 37. Qe2 {[%clk 0:00:12]}  Kf7 {[%clk 0:00:04]} 38. g3 {[%clk 0:00:12]}  Ke7 {[%clk 0:00:03]} 39. Qb5 {[%clk 0:00:11]}  Rd6 {[%clk 0:00:02]} 40. Qxg5+ {[%clk 0:00:11]}  Bf6 {[%clk 0:00:01]} 41. Qg6 {[%clk 0:00:10]}  Rd1+ {[%clk 0:00:01]} 42. Kg2 {[%clk 0:00:10]}  Rd2+ {[%clk 0:00:02]} 43. Kf3 {[%clk 0:00:10]}  Rxb2 {[%clk 0:00:02]} 44. Qh7+ {[%clk 0:00:09]}  Kd6 {[%clk 0:00:02]} 45. Qb7 {[%clk 0:00:08]}  Be5 {[%clk 0:00:02]} 46. Qb8+ {[%clk 0:00:06]}  Kd5 {[%clk 0:00:02]} 47. Qd8+ {[%clk 0:00:06]}  Kc6 {[%clk 0:00:02]} 48. Qe8+ {[%clk 0:00:05]}  Kd6 {[%clk 0:00:02]} 49. Qf8+ {[%clk 0:00:05]}  Kd5 {[%clk 0:00:02]} 50. Qa8+ {[%clk 0:00:04]}  Kd6 {[%clk 0:00:02]} 51. g4 {[%clk 0:00:02]}  Rb3+ {[%clk 0:00:02]} 52. Ke4 {[%clk 0:00:02]}  Rb4+ {[%clk 0:00:02]} 53. Kd3 {[%clk 0:00:01]}  Rb3+ {[%clk 0:00:03]} 54. Kc4 {[%clk 0:00:01]}  Rxh3 {[%clk 0:00:03]} 0-1


[Site "https://www.chess.com"]

[Event "Titled Tuesday Blitz April 11 Early 2023"]
[White "Mbonu, David"]
[Black "Mortazavi, Ali"]
[WhiteFideId "30927420"]
[BlackFideId "401323"]
[WhiteElo "2380"]
[BlackElo "2339"]
[Result "0-1"]
[Round "06"]
[TimeControl "180+2"]
[Date "2023.04.11"]
[WhiteClock "0:01:54"]
[BlackClock "0:01:20"]

1. e4 {[%clk 0:03:00]}  c6 {[%clk 0:02:56]} 2. d4 {[%clk 0:02:58]}  d5 {[%clk 0:02:57]} 3. exd5 {[%clk 0:02:57]}  cxd5 {[%clk 0:02:56]} 4. Bd3 {[%clk 0:02:55]}  Nc6 {[%clk 0:02:56]} 5. c3 {[%clk 0:02:54]}  Qc7 {[%clk 0:02:56]} 6. h3 {[%clk 0:02:54]}  g6 {[%clk 0:02:56]} 7. Nf3 {[%clk 0:02:52]}  Bf5 {[%clk 0:02:56]} 8. O-O {[%clk 0:02:53]}  Nf6 {[%clk 0:02:56]} 9. Re1 {[%clk 0:02:52]}  e6 {[%clk 0:02:53]} 10. Ne5 {[%clk 0:02:51]}  Bg7 {[%clk 0:02:44]} 11. Na3 {[%clk 0:02:46]}  a6 {[%clk 0:02:38]} 12. Bf1 {[%clk 0:02:38]}  h5 {[%clk 0:02:33]} 13. Bf4 {[%clk 0:02:37]}  Qc8 {[%clk 0:02:33]} 14. Nc2 {[%clk 0:02:35]}  Bxc2 {[%clk 0:02:26]} 15. Qxc2 {[%clk 0:02:31]}  Nxd4 {[%clk 0:02:26]} 16. Qa4+ {[%clk 0:02:30]}  Nc6 {[%clk 0:02:27]} 17. Nxc6 {[%clk 0:02:28]}  Qxc6 {[%clk 0:02:25]} 18. Qa3 {[%clk 0:02:25]}  Bf8 {[%clk 0:02:15]} 19. Qb3 {[%clk 0:02:22]}  Be7 {[%clk 0:02:15]} 20. Be5 {[%clk 0:02:17]}  O-O {[%clk 0:02:14]} 21. Qc2 {[%clk 0:02:16]}  Nd7 {[%clk 0:02:12]} 22. Bd4 {[%clk 0:02:14]}  Bf6 {[%clk 0:02:11]} 23. Qd2 {[%clk 0:02:11]}  Bxd4 {[%clk 0:02:01]} 24. Qxd4 {[%clk 0:02:12]}  Rad8 {[%clk 0:01:51]} 25. Rad1 {[%clk 0:02:12]}  Rfe8 {[%clk 0:01:47]} 26. Qh4 {[%clk 0:02:10]}  e5 {[%clk 0:01:42]} 27. g4 {[%clk 0:02:01]}  hxg4 {[%clk 0:01:41]} 28. hxg4 {[%clk 0:01:58]}  Nf8 {[%clk 0:01:30]} 29. Bg2 {[%clk 0:01:56]}  Ne6 {[%clk 0:01:21]} 30. Re3 {[%clk 0:01:55]}  Nf4 {[%clk 0:01:20]} 31. Rh3 {[%clk 0:01:54]}  Nxh3+ {[%clk 0:01:20]} 0-1


[Site "https://www.chess.com"]

[Event "Titled Tuesday Blitz April 11 Early 2023"]
[White "tetrix83"]
[Black "Mogirzan, Matei-Valeriu"]
[BlackFideId "1257455"]
[WhiteElo "2518"]
[BlackElo "1733"]
[Result "0-1"]
[Round "06"]
[TimeControl "180+2"]
[Date "2023.04.11"]
[WhiteClock "0:00:04"]
[BlackClock "0:00:05"]

1. e4 {[%clk 0:03:00]}  e5 {[%clk 0:02:59]} 2. Nf3 {[%clk 0:03:00]}  f5 {[%clk 0:02:58]} 3. exf5 {[%clk 0:02:59]}  Nc6 {[%clk 0:02:57]} 4. d4 {[%clk 0:02:35]}  e4 {[%clk 0:02:56]} 5. d5 {[%clk 0:02:36]}  exf3 {[%clk 0:02:38]} 6. dxc6 {[%clk 0:02:35]}  bxc6 {[%clk 0:02:35]} 7. Qxf3 {[%clk 0:02:34]}  Nf6 {[%clk 0:02:34]} 8. Bd3 {[%clk 0:02:31]}  Be7 {[%clk 0:02:28]} 9. O-O {[%clk 0:02:31]}  O-O {[%clk 0:02:28]} 10. Nc3 {[%clk 0:02:28]}  d5 {[%clk 0:02:27]} 11. Ne2 {[%clk 0:02:23]}  c5 {[%clk 0:02:01]} 12. c4 {[%clk 0:02:18]}  c6 {[%clk 0:01:55]} 13. Nf4 {[%clk 0:02:14]}  Ne4 {[%clk 0:01:41]} 14. Bxe4 {[%clk 0:01:55]}  dxe4 {[%clk 0:01:37]} 15. Qxe4 {[%clk 0:01:55]}  Bxf5 {[%clk 0:01:35]} 16. Qxc6 {[%clk 0:01:54]}  Kh8 {[%clk 0:01:12]} 17. Ne6 {[%clk 0:01:46]}  Bxe6 {[%clk 0:00:42]} 18. Qxe6 {[%clk 0:01:47]}  Rf6 {[%clk 0:00:26]} 19. Qe4 {[%clk 0:01:44]}  Rd6 {[%clk 0:00:23]} 20. Be3 {[%clk 0:01:40]}  Rc8 {[%clk 0:00:16]} 21. b3 {[%clk 0:01:38]}  Bf6 {[%clk 0:00:16]} 22. Rac1 {[%clk 0:01:32]}  Qd7 {[%clk 0:00:16]} 23. g3 {[%clk 0:01:28]}  Re8 {[%clk 0:00:16]} 24. Qf3 {[%clk 0:01:28]}  Qc8 {[%clk 0:00:12]} 25. Rcd1 {[%clk 0:01:27]}  Rc6 {[%clk 0:00:11]} 26. Rd5 {[%clk 0:01:26]}  Be7 {[%clk 0:00:10]} 27. Rfd1 {[%clk 0:01:19]}  Rf6 {[%clk 0:00:09]} 28. Qe4 {[%clk 0:01:11]}  Bf8 {[%clk 0:00:05]} 29. Qh4 {[%clk 0:01:04]}  h6 {[%clk 0:00:04]} 30. Bg5 {[%clk 0:00:58]}  Rf7 {[%clk 0:00:03]} 31. Rd8 {[%clk 0:00:56]}  Rxd8 {[%clk 0:00:04]} 32. Rxd8 {[%clk 0:00:56]}  Qf5 {[%clk 0:00:04]} 33. Be3 {[%clk 0:00:51]}  Qf3 {[%clk 0:00:03]} 34. Bxc5 {[%clk 0:00:46]}  Kh7 {[%clk 0:00:02]} 35. Be3 {[%clk 0:00:25]}  Be7 {[%clk 0:00:01]} 36. Qd4 {[%clk 0:00:10]}  Bxd8 {[%clk 0:00:02]} 37. Qxd8 {[%clk 0:00:10]}  Qf5 {[%clk 0:00:02]} 38. Qd2 {[%clk 0:00:09]}  Qb1+ {[%clk 0:00:02]} 39. Kg2 {[%clk 0:00:10]}  Qe4+ {[%clk 0:00:03]} 40. Kg1 {[%clk 0:00:10]}  Qf3 {[%clk 0:00:03]} 41. h4 {[%clk 0:00:09]}  Qg4 {[%clk 0:00:03]} 42. c5 {[%clk 0:00:09]}  Rd7 {[%clk 0:00:04]} 43. Qc2+ {[%clk 0:00:07]}  Kg8 {[%clk 0:00:04]} 44. Kg2 {[%clk 0:00:05]}  Qe6 {[%clk 0:00:03]} 45. c6 {[%clk 0:00:05]}  Rc7 {[%clk 0:00:03]} 46. Qd3 {[%clk 0:00:02]}  Qxc6+ {[%clk 0:00:03]} 47. Kh2 {[%clk 0:00:03]}  Rd7 {[%clk 0:00:04]} 48. Qf5 {[%clk 0:00:03]}  Rd1 {[%clk 0:00:04]} 49. f3 {[%clk 0:00:02]}  Re1 {[%clk 0:00:03]} 50. Bf4 {[%clk 0:00:02]}  Re2+ {[%clk 0:00:04]} 51. Kh3 {[%clk 0:00:02]}  Qe6 {[%clk 0:00:04]} 52. Qxe6+ {[%clk 0:00:02]}  Rxe6 {[%clk 0:00:05]} 53. Kg4 {[%clk 0:00:02]}  Ra6 {[%clk 0:00:06]} 54. a4 {[%clk 0:00:02]}  Rb6 {[%clk 0:00:06]} 55. Be3 {[%clk 0:00:03]}  Rxb3 {[%clk 0:00:07]} 56. Bxa7 {[%clk 0:00:03]}  Rb4+ {[%clk 0:00:07]} 57. f4 {[%clk 0:00:03]}  Rxa4 {[%clk 0:00:08]} 58. Bb8 {[%clk 0:00:03]}  Kf7 {[%clk 0:00:08]} 59. h5 {[%clk 0:00:04]}  Kf6 {[%clk 0:00:07]} 60. Be5+ {[%clk 0:00:04]}  Kf7 {[%clk 0:00:08]} 61. Kf5 {[%clk 0:00:04]}  Ra2 {[%clk 0:00:07]} 62. g4 {[%clk 0:00:05]}  Rf2 {[%clk 0:00:06]} 63. Bd4 {[%clk 0:00:04]}  Rh2 {[%clk 0:00:05]} 64. g5 {[%clk 0:00:04]}  Rxh5 {[%clk 0:00:05]} 0-1


[Site "https://www.chess.com"]

[Event "Titled Tuesday Blitz April 11 Early 2023"]
[White "Novikova, Galina"]
[Black "Krishnan, Varun"]
[WhiteFideId "4157095"]
[BlackFideId "5054508"]
[WhiteElo "1953"]
[BlackElo "2515"]
[Result "0-1"]
[Round "06"]
[TimeControl "180+2"]
[Date "2023.04.11"]
[WhiteClock "0:00:35"]
[BlackClock "0:01:02"]

1. e4 {[%clk 0:03:00]}  e5 {[%clk 0:02:59]} 2. Nf3 {[%clk 0:03:00]}  Nc6 {[%clk 0:02:59]} 3. d4 {[%clk 0:03:01]}  exd4 {[%clk 0:02:59]} 4. Nxd4 {[%clk 0:03:02]}  Nf6 {[%clk 0:02:57]} 5. Nxc6 {[%clk 0:03:02]}  bxc6 {[%clk 0:02:58]} 6. Qe2 {[%clk 0:03:03]}  Bc5 {[%clk 0:02:50]} 7. Nc3 {[%clk 0:03:02]}  O-O {[%clk 0:02:48]} 8. Bg5 {[%clk 0:03:02]}  h6 {[%clk 0:02:44]} 9. Bh4 {[%clk 0:03:02]}  Re8 {[%clk 0:02:37]} 10. O-O-O {[%clk 0:03:02]}  Qe7 {[%clk 0:02:28]} 11. f3 {[%clk 0:03:02]}  Rb8 {[%clk 0:02:25]} 12. g4 {[%clk 0:02:47]}  Bb4 {[%clk 0:02:07]} 13. Be1 {[%clk 0:02:45]}  d5 {[%clk 0:02:00]} 14. exd5 {[%clk 0:01:28]}  Bxc3 {[%clk 0:01:53]} 15. Bxc3 {[%clk 0:01:15]}  Qxe2 {[%clk 0:01:52]} 16. Bxe2 {[%clk 0:01:16]}  Rxe2 {[%clk 0:01:51]} 17. h4 {[%clk 0:01:15]}  Nxd5 {[%clk 0:01:48]} 18. Bd4 {[%clk 0:01:14]}  Be6 {[%clk 0:01:40]} 19. a3 {[%clk 0:01:11]}  a5 {[%clk 0:01:31]} 20. g5 {[%clk 0:01:04]}  h5 {[%clk 0:01:30]} 21. g6 {[%clk 0:01:04]}  fxg6 {[%clk 0:01:26]} 22. Rhg1 {[%clk 0:01:03]}  Kf7 {[%clk 0:01:25]} 23. f4 {[%clk 0:01:01]}  Bf5 {[%clk 0:01:24]} 24. Rd2 {[%clk 0:00:58]}  Rxd2 {[%clk 0:01:18]} 25. Kxd2 {[%clk 0:00:59]}  Nf6 {[%clk 0:01:18]} 26. Be5 {[%clk 0:00:58]}  Ne4+ {[%clk 0:01:14]} 27. Kc1 {[%clk 0:00:56]}  Nd6 {[%clk 0:01:13]} 28. b3 {[%clk 0:00:51]}  c5 {[%clk 0:01:12]} 29. Kb2 {[%clk 0:00:50]}  Nc4+ {[%clk 0:01:12]} 30. Kc3 {[%clk 0:00:49]}  Nxe5 {[%clk 0:01:12]} 31. fxe5 {[%clk 0:00:50]}  Re8 {[%clk 0:01:07]} 32. Re1 {[%clk 0:00:50]}  g5 {[%clk 0:01:07]} 33. hxg5 {[%clk 0:00:49]}  h4 {[%clk 0:01:07]} 34. Re2 {[%clk 0:00:46]}  Kg6 {[%clk 0:01:05]} 35. Kc4 {[%clk 0:00:46]}  h3 {[%clk 0:01:03]} 36. Kxc5 {[%clk 0:00:46]}  Kxg5 {[%clk 0:01:04]} 37. Kb5 {[%clk 0:00:35]}  Kf4 {[%clk 0:01:02]} 38. Kxa5 {[%clk 0:00:35]}  Rxe5+ {[%clk 0:01:02]} 39. Rxe5 {[%clk 0:00:35]}  Kxe5 {[%clk 0:01:02]} 0-1


[Site "https://www.chess.com"]

[Event "Titled Tuesday Blitz April 11 Early 2023"]
[White "Smith, Garrett L"]
[Black "Dobre, Claudiu-Cristian"]
[WhiteFideId "2024829"]
[BlackFideId "1211854"]
[WhiteElo "2329"]
[BlackElo "2207"]
[Result "0-1"]
[Round "06"]
[TimeControl "180+2"]
[Date "2023.04.11"]
[WhiteClock "0:00:59"]
[BlackClock "0:01:05"]

1. e4 {[%clk 0:03:00]}  Nc6 {[%clk 0:02:59]} 2. d4 {[%clk 0:03:00]}  d5 {[%clk 0:02:58]} 3. Nc3 {[%clk 0:03:00]}  dxe4 {[%clk 0:02:58]} 4. d5 {[%clk 0:03:01]}  Nb8 {[%clk 0:02:58]} 5. Nxe4 {[%clk 0:02:45]}  c6 {[%clk 0:02:58]} 6. dxc6 {[%clk 0:02:38]}  Qxd1+ {[%clk 0:02:57]} 7. Kxd1 {[%clk 0:02:39]}  Nxc6 {[%clk 0:02:57]} 8. c3 {[%clk 0:02:38]}  Bf5 {[%clk 0:02:55]} 9. Bd3 {[%clk 0:02:24]}  e6 {[%clk 0:02:43]} 10. Bf4 {[%clk 0:02:21]}  Rd8 {[%clk 0:02:06]} 11. Ke2 {[%clk 0:02:18]}  h6 {[%clk 0:01:53]} 12. Nf3 {[%clk 0:02:12]}  g5 {[%clk 0:01:52]} 13. Be5 {[%clk 0:01:45]}  Nxe5 {[%clk 0:01:47]} 14. Nxe5 {[%clk 0:01:45]}  a6 {[%clk 0:01:47]} 15. h4 {[%clk 0:01:40]}  Bg7 {[%clk 0:01:47]} 16. Nc4 {[%clk 0:01:38]}  Ke7 {[%clk 0:01:27]} 17. hxg5 {[%clk 0:01:37]}  hxg5 {[%clk 0:01:26]} 18. Rxh8 {[%clk 0:01:29]}  Bxh8 {[%clk 0:01:26]} 19. Ne3 {[%clk 0:01:27]}  Bg6 {[%clk 0:01:22]} 20. f3 {[%clk 0:01:17]}  Nf6 {[%clk 0:01:10]} 21. Rh1 {[%clk 0:01:07]}  Nh5 {[%clk 0:01:07]} 22. Rh3 {[%clk 0:00:59]}  Nf4+ {[%clk 0:01:05]} 0-1


[Site "https://www.chess.com"]

[Event "Titled Tuesday Blitz April 11 Early 2023"]
[White "Goffredo_Fofi"]
[Black "MunichMouse"]
[WhiteElo "2507"]
[BlackElo "2309"]
[Result "1-0"]
[Round "06"]
[TimeControl "180+2"]
[Date "2023.04.11"]
[WhiteClock "0:00:17"]
[BlackClock "0:00:03"]

1. d4 {[%clk 0:03:00]}  Nf6 {[%clk 0:02:59]} 2. Nf3 {[%clk 0:03:00]}  g6 {[%clk 0:02:59]} 3. c4 {[%clk 0:03:00]}  Bg7 {[%clk 0:02:59]} 4. Nc3 {[%clk 0:03:01]}  d6 {[%clk 0:02:59]} 5. e4 {[%clk 0:03:01]}  O-O {[%clk 0:03:00]} 6. Be2 {[%clk 0:03:01]}  e5 {[%clk 0:02:59]} 7. d5 {[%clk 0:03:02]}  Ne8 {[%clk 0:02:59]} 8. h4 {[%clk 0:02:47]}  h6 {[%clk 0:02:58]} 9. h5 {[%clk 0:02:44]}  g5 {[%clk 0:02:59]} 10. Nh2 {[%clk 0:02:38]}  f5 {[%clk 0:02:58]} 11. exf5 {[%clk 0:02:38]}  Bxf5 {[%clk 0:02:59]} 12. Ng4 {[%clk 0:02:32]}  Nd7 {[%clk 0:02:54]} 13. Ne3 {[%clk 0:02:18]}  Bh7 {[%clk 0:02:49]} 14. Bd3 {[%clk 0:02:15]}  Bxd3 {[%clk 0:02:40]} 15. Qxd3 {[%clk 0:02:16]}  Nc5 {[%clk 0:02:40]} 16. Qc2 {[%clk 0:02:12]}  a5 {[%clk 0:02:40]} 17. Ne4 {[%clk 0:01:52]}  Nxe4 {[%clk 0:02:39]} 18. Qxe4 {[%clk 0:01:53]}  Qf6 {[%clk 0:02:39]} 19. O-O {[%clk 0:01:22]}  Qf4 {[%clk 0:02:30]} 20. f3 {[%clk 0:01:20]}  Qxe4 {[%clk 0:02:14]} 21. fxe4 {[%clk 0:01:20]}  Nf6 {[%clk 0:02:14]} 22. Nf5 {[%clk 0:01:00]}  Nxe4 {[%clk 0:02:07]} 23. Be3 {[%clk 0:01:00]}  Nf6 {[%clk 0:01:59]} 24. Ng3 {[%clk 0:00:57]}  Ng4 {[%clk 0:01:58]} 25. Rfe1 {[%clk 0:00:54]}  Nxe3 {[%clk 0:01:53]} 26. Rxe3 {[%clk 0:00:55]}  Rf4 {[%clk 0:01:53]} 27. b3 {[%clk 0:00:50]}  Raf8 {[%clk 0:01:52]} 28. Rc1 {[%clk 0:00:40]}  b6 {[%clk 0:00:50]} 29. Rce1 {[%clk 0:00:35]}  a4 {[%clk 0:00:43]} 30. Re4 {[%clk 0:00:35]}  axb3 {[%clk 0:00:42]} 31. axb3 {[%clk 0:00:35]}  Ra8 {[%clk 0:00:41]} 32. R4e3 {[%clk 0:00:18]}  Ra2 {[%clk 0:00:31]} 33. Ne4 {[%clk 0:00:17]}  Rb2 {[%clk 0:00:31]} 34. Rf1 {[%clk 0:00:15]}  Kf7 {[%clk 0:00:28]} 35. g3 {[%clk 0:00:15]}  Rxf1+ {[%clk 0:00:26]} 36. Kxf1 {[%clk 0:00:16]}  Ke7 {[%clk 0:00:24]} 37. g4 {[%clk 0:00:15]}  b5 {[%clk 0:00:17]} 38. Ng3 {[%clk 0:00:14]}  Bf8 {[%clk 0:00:15]} 39. Nf5+ {[%clk 0:00:13]}  Kd7 {[%clk 0:00:14]} 40. Rf3 {[%clk 0:00:13]}  bxc4 {[%clk 0:00:14]} 41. bxc4 {[%clk 0:00:14]}  Rc2 {[%clk 0:00:14]} 42. Ne3 {[%clk 0:00:14]}  Rc3 {[%clk 0:00:14]} 43. Ke2 {[%clk 0:00:14]}  Be7 {[%clk 0:00:13]} 44. Kd2 {[%clk 0:00:14]}  Ra3 {[%clk 0:00:13]} 45. Rf7 {[%clk 0:00:14]}  Ke8 {[%clk 0:00:09]} 46. Rh7 {[%clk 0:00:14]}  Ra2+ {[%clk 0:00:09]} 47. Kd3 {[%clk 0:00:14]}  Ra3+ {[%clk 0:00:10]} 48. Ke4 {[%clk 0:00:14]}  Ra6 {[%clk 0:00:05]} 49. Rxh6 {[%clk 0:00:14]}  c6 {[%clk 0:00:06]} 50. dxc6 {[%clk 0:00:14]}  Rxc6 {[%clk 0:00:05]} 51. Rh8+ {[%clk 0:00:15]}  Kd7 {[%clk 0:00:05]} 52. Rh7 {[%clk 0:00:15]}  Rc8 {[%clk 0:00:05]} 53. Nd5 {[%clk 0:00:15]}  Re8 {[%clk 0:00:04]} 54. Nf6+ {[%clk 0:00:15]}  Kd8 {[%clk 0:00:05]} 55. Nxe8 {[%clk 0:00:16]}  Kxe8 {[%clk 0:00:05]} 56. Kf5 {[%clk 0:00:16]}  e4 {[%clk 0:00:04]} 57. Kxe4 {[%clk 0:00:17]}  Kf8 {[%clk 0:00:03]} 58. Kf5 {[%clk 0:00:17]} 1-0


[Site "https://www.chess.com"]